[Event "44th Chess Olympiad Open 2022"]
[Site "Chennai"]
[Date "2022.08.09"]
[Round "11.58"]
[White "Pereira, Sergio Murilo de Ara"]
[Black "Jimma, Desalegn Fekadu"]
[Result "1-0"]
[ECO "C07"]
[WhiteElo "2093"]
[BlackElo "2112"]
[Annotator "RC"]
[PlyCount "115"]
[EventDate "2022.07.29"]
[EventType "team-tourn"]
[EventCountry "IND"]
[SourceTitle "playchess.com"]
[Source "ChessBase"]
[SourceQuality "1"]
[WhiteTeam "Brazil"]
[BlackTeam "Ethiopia"]
[WhiteTeamCountry "BRA"]
[BlackTeamCountry "ETH"]
[TimeControl "40/5400+30:1800+30"]

1. e4 {[%emt 0:00:06]} c5 {[%emt 0:00:05]} 2. c3 {[%emt 0:00:07]} e6 {[%emt 0:00:31]} 3. d4 {[%emt 0:00:25]} d5 {[%emt 0:00:29]} 4. Nd2 {[%emt 0:02:39]} cxd4 {[%emt 0:00:59]} 5. cxd4 {[%emt 0:00:06]} dxe4 {[%emt 0:01:36]} 6. Nxe4 {[%emt 0:00:09]} Bb4+ {[%emt 0:00:50]} 7. Nc3 {[%emt 0:01:12]} Nc6 {[%emt 0:01:24]} 8. Nf3 {[%emt 0:00:23]} Nf6 {[%emt 0:00:17]} 9. a3 {[%emt 0:04:46]} Ba5 {[%emt 0:02:52]} 10. Bc4 {[%emt 0:17:12]} O-O {[%emt 0:00:28]} 11. O-O {[%emt 0:08:05]} h6 {[%emt 0:01:08]} 12. Qd3 {[%emt 0:05:15]} a6 {[%emt 0:00:32]} 13. b4 {[%emt 0:04:05]} Bc7 {[%emt 0:00:43]} 14. Rd1 {[%emt 0:05:35]} b5 {[%emt 0:02:51]} 15. Bb3 {[%emt 0:00:45]} Bb7 {[%emt 0:00:50]} 16. Be3 {[%emt 0:02:14]} Ne7 {[%emt 0:00:20]} 17. Ne5 {[%emt 0:05:01]} Nf5 {[%emt 0:03:28]} 18. Rac1 {[%emt 0:12:01]} Rc8 {[%emt 0:00:31]} 19. f4 {[%emt 0:04:05]} Bxe5 {[%emt 0:07:46]} 20. dxe5 {[%emt 0:04:24]} Ng4 {[%emt 0:00:48]} 21. Bc5 {[%emt 0:01:32]} Qh4 {[%emt 0:00:18]} 22. Qh3 {[%emt 0:02:30]} Rfd8 {[%emt 0:01:57]} 23. Qxh4 {[%emt 0:00:58]} Nxh4 {[%emt 0:00:20]} 24. h3 {[%emt 0:00:34]} Nxg2 {[%emt 0:05:41]} 25. hxg4 {[%emt 0:01:07]} Nxf4 {[%emt 0:00:11]} 26. Rxd8+ {[%emt 0:01:48]} Rxd8 {[%emt 0:00:50]} 27. Rd1 {[%emt 0:00:10]} Rd3 {[%emt 0:06:12]} 28. Rxd3 {[%emt 0:01:41]} Nxd3 {[%emt 0:00:07]} 29. Bd6 {[%emt 0:01:33]} Bf3 {[%emt 0:00:42]} 30. Bd1 {[%emt 0:00:58]} Bxd1 {[%emt 0:01:57]} 31. Nxd1 {[%emt 0:00:05]} f5 {[%emt 0:00:53]} 32. gxf5 {[%emt 0:00:39]} exf5 {[%emt 0:00:04]} 33. e6 {[%emt 0:01:23]} Ne1 {[%emt 0:10:49]} 34. Ne3 {[%emt 0:07:29]} Nf3+ {[%emt 0:01:51]} 35. Kf2 {[%emt 0:00:07]} Ng5 {[%emt 0:00:59]} 36. Nxf5 {[%emt 0:02:09]} Nxe6 {[%emt 0:00:29]} 37. Ke3 {[%emt 0:00:38]} h5 {[%emt 0:01:22]} 38. Ne7+ {[%emt 0:00:53]} Kf7 {[%emt 0:00:33]} 39. Nd5 {[%emt 0:00:11]} g5 {[%emt 0:00:33]} 40. Nc7 {[%emt 0:00:10]} Nxc7 {[%emt 0:03:06]} 41. Bxc7 {[%emt 0:30:08]} Kg6 {[%emt 0:31:00]} 42. Bd8 {[%emt 0:05:18]} Kf5 {[%emt 0:04:12]} 43. Kf3 {[%emt 0:00:00]} h4 {[%emt 0:00:00]} 44. Be7 {[%emt 0:00:00]} g4+ {[%emt 0:00:00]} 45. Kf2 {[%emt 0:00:00]} h3 {[%emt 0:00:00]} 46. Kg3 {[%emt 0:00:00]} Kg6 {[%emt 0:00:00]} 47. Bd6 {[%emt 0:00:00]} Kg5 {[%emt 0:00:00]} 48. Kf2 {[%emt 0:00:00]} Kf5 {[%emt 0:02:22]} 49. Ke3 {[%emt 0:00:00]} Kg5 {[%emt 0:01:49]} 50. Bg3 {[%emt 0:00:00]} Kf5 {[%emt 0:02:34]} 51. Kd4 {[%emt 0:00:00]} Ke6 {[%emt 0:02:02]} 52. Ke4 {[%emt 0:00:00]} Kf6 {[%emt 0:02:10]} 53. Kf4 {[%emt 0:00:00]} Ke6 {[%emt 0:00:05]} 54. Kxg4 {[%emt 0:00:00]} Kd5 {[%emt 0:00:09]} 55. Kxh3 {[%emt 0:00:00]} Kc4 {[%emt 0:00:13]} 56. Bc7 {[%emt 0:00:00]} Kb3 {[%emt 0:00:28]} 57. Kg4 {[%emt 0:00:00]} Kxa3 {[%emt 0:00:13]} 58. Ba5 {[%emt 0:00:00]} 1-0

[Event "44th Chess Olympiad Open 2022"]
[Site "Chennai"]
[Date "2022.08.09"]
[Round "11.58"]
[White "Tsige, Addisalem Temesgen"]
[Black "Lima, Osvaldo Dos Santos"]
[Result "1-0"]
[ECO "B07"]
[WhiteElo "2072"]
[BlackElo "1863"]
[Annotator "NA RC"]
[PlyCount "69"]
[EventDate "2022.07.29"]
[EventType "team-tourn"]
[EventCountry "IND"]
[SourceTitle "playchess.com"]
[Source "ChessBase"]
[SourceQuality "1"]
[WhiteTeam "Ethiopia"]
[BlackTeam "STP"]
[WhiteTeamCountry "ETH"]
[TimeControl "40/5400+30:1800+30"]

1. d4 {[%emt 1:31:00]} Nf6 {[%emt 0:00:19]} 2. Bf4 {[%emt 0:00:00]} g6 {[%emt 0:01:13]} 3. Nc3 {[%emt 0:00:00]} Bg7 {[%emt 0:00:11]} 4. e4 {[%emt 0:00:00]} d6 {[%emt 0:00:37]} 5. Qd2 {[%emt 0:00:00]} h6 {[%emt 0:01:52]} 6. f3 {[%emt 0:00:00]} g5 {[%emt 0:00:09]} 7. Be3 {[%emt 0:00:00]} Nbd7 {[%emt 0:02:08]} 8. O-O-O {[%emt 0:00:00]} e5 {[%emt 0:00:11]} 9. Nge2 {[%emt 0:00:00]} a6 {[%emt 0:00:49]} 10. h4 {[%emt 0:00:00]} g4 {[%emt 0:00:51]} 11. f4 {[%emt 0:00:00]} exf4 {[%emt 0:03:19]} 12. Bxf4 {[%emt 0:00:00]} Nh5 {[%emt 0:00:47]} 13. Be3 {[%emt 0:00:00]} b5 {[%emt 0:02:59]} 14. Kb1 {[%emt 0:00:00]} Nb6 {[%emt 0:00:35]} 15. Nf4 {[%emt 0:00:00]} Ng3 {[%emt 0:01:26]} 16. Rg1 {[%emt 0:00:00]} Nxf1 {[%emt 0:01:40]} 17. Rgxf1 {[%emt 0:00:00]} Nc4 {[%emt 0:01:29]} 18. Qf2 {[%emt 0:00:00]} Nxe3 {[%emt 0:01:39]} 19. Qxe3 {[%emt 0:00:00]} Qxh4 {[%emt 0:01:16]} 20. Nfd5 {[%emt 0:00:00]} Qd8 {[%emt 0:02:54]} 21. e5 {[%emt 0:00:00]} Be6 {[%emt 0:28:42]} 22. Nxc7+ {[%emt 0:00:00]} Qxc7 {[%emt 0:01:38]} 23. exd6 {[%emt 0:00:00]} Qxd6 {[%emt 0:03:11]} 24. d5 {[%emt 0:00:00]} b4 {[%emt 0:10:47]} 25. dxe6 {[%emt 0:00:00]} Qxe6 {[%emt 0:00:03]} 26. Qc5 {[%emt 0:00:00]} Bf8 {[%emt 0:02:44]} 27. Qd4 {[%emt 0:00:00]} Rg8 {[%emt 0:18:12]} 28. Rfe1 {[%emt 0:00:00]} Be7 {[%emt 0:00:17]} 29. Rxe6 {[%emt 0:00:00]} fxe6 {[%emt 0:01:21]} 30. Qd7+ {[%emt 0:00:00]} Kf7 {[%emt 0:00:07]} 31. Rf1+ {[%emt 0:00:00]} Kg6 {[%emt 0:00:57]} 32. Qxe6+ {[%emt 0:00:00]} Kh7 {[%emt 0:01:10]} 33. Qxe7+ {[%emt 0:00:00]} Rg7 {[%emt 0:00:07]} 34. Qe4+ {[%emt 0:00:00]} Kh8 {[%emt 0:02:25]} 35. Qxa8+ {[%emt 0:00:00]} 1-0

[Event "44th Chess Olympiad Open 2022"]
[Site "Chennai"]
[Date "2022.08.09"]
[Round "11.58"]
[White "Espirito Santo, Waldyr"]
[Black "Gole, Habtamu Ashenafi"]
[Result "0-1"]
[ECO "C54"]
[WhiteElo "1922"]
[BlackElo "2044"]
[Annotator "NA RC"]
[PlyCount "92"]
[EventDate "2022.07.29"]
[EventType "team-tourn"]
[EventCountry "IND"]
[SourceTitle "playchess.com"]
[Source "ChessBase"]
[SourceQuality "1"]
[WhiteTeam "STP"]
[BlackTeam "Ethiopia"]
[BlackTeamCountry "ETH"]
[TimeControl "40/5400+30:1800+30"]

1. e4 {[%emt 0:00:03]} Nc6 {[%emt 0:00:06]} 2. Nf3 {[%emt 0:02:15]} e5 {[%emt 0:00:30]} 3. Bc4 {[%emt 0:00:48]} Nf6 {[%emt 0:00:10]} 4. d3 {[%emt 0:00:23]} Bc5 {[%emt 0:00:25]} 5. O-O {[%emt 0:00:34]} h6 {[%emt 0:00:25]} 6. c3 {[%emt 0:00:35]} Bb6 {[%emt 0:02:41]} 7. Nbd2 {[%emt 0:01:18]} d6 {[%emt 0:00:47]} 8. Bb3 {[%emt 0:00:38]} Bg4 {[%emt 0:00:49]} 9. Nc4 {[%emt 0:00:44]} O-O {[%emt 0:01:34]} 10. h3 {[%emt 0:00:33]} Bh5 {[%emt 0:00:04]} 11. Nxb6 {[%emt 0:00:31]} axb6 {[%emt 0:00:02]} 12. Re1 {[%emt 0:03:06]} Re8 {[%emt 0:01:26]} 13. g4 {[%emt 0:01:17]} Bg6 {[%emt 0:00:13]} 14. Nh4 {[%emt 0:03:35]} Bh7 {[%emt 0:00:37]} 15. Nf5 {[%emt 0:00:15]} Ne7 {[%emt 0:07:37]} 16. Qf3 {[%emt 0:01:16]} Nxf5 {[%emt 0:03:23]} 17. gxf5 {[%emt 0:00:25]} d5 {[%emt 0:02:07]} 18. Kh2 {[%emt 0:01:42]} Qd6 {[%emt 0:03:26]} 19. Rg1 {[%emt 0:01:34]} Kh8 {[%emt 0:00:29]} 20. Rg3 {[%emt 0:01:51]} Rg8 {[%emt 0:03:02]} 21. Be3 {[%emt 0:01:21]} c6 {[%emt 0:01:37]} 22. Rag1 {[%emt 0:01:07]} b5 {[%emt 0:03:43]} 23. a3 {[%emt 0:00:57]} Rad8 {[%emt 0:02:51]} 24. Bd1 {[%emt 0:03:20]} dxe4 {[%emt 0:09:34]} 25. dxe4 {[%emt 0:01:30]} Qd3 {[%emt 0:00:41]} 26. Bb3 {[%emt 0:12:16]} Qxe4 {[%emt 0:07:39]} 27. Qe2 {[%emt 0:02:45]} Rd7 {[%emt 0:02:50]} 28. Bc2 {[%emt 0:01:35]} Qc4 {[%emt 0:06:13]} 29. Qf3 {[%emt 0:03:59]} Qd5 {[%emt 0:01:43]} 30. Qe2 {[%emt 0:02:05]} e4 {[%emt 0:04:04]} 31. Bd4 {[%emt 0:05:50]} Qxf5 {[%emt 0:02:33]} 32. Qe3 {[%emt 0:03:48]} Rd6 {[%emt 0:11:54]} 33. f3 {[%emt 0:02:20]} Nh5 {[%emt 0:10:00]} 34. fxe4 {[%emt 0:02:48]} Qd7 {[%emt 0:02:48]} 35. R3g2 {[%emt 0:02:57]} Re6 {[%emt 0:02:37]} 36. Qf3 {[%emt 0:16:51]} c5 {[%emt 0:01:24]} 37. Be3 {[%emt 0:02:04]} Qd6+ {[%emt 0:02:03]} 38. Kh1 {[%emt 0:00:27]} Qe5 {[%emt 0:00:25]} 39. Qxf7 {[%emt 0:02:16]} Re7 {[%emt 0:04:36]} 40. Qf3 {[%emt 0:01:27]} Re6 {[%emt 0:00:45]} 41. Bc1 {[%emt 0:33:42]} Rf6 {[%emt 0:02:58]} 42. Qe2 {[%emt 0:00:00]} Rgf8 {[%emt 0:01:35]} 43. Be3 {[%emt 0:00:00]} Rf3 {[%emt 0:00:48]} 44. Rh2 {[%emt 0:00:00]} Bxe4 {[%emt 0:04:30]} 45. Bxe4 {[%emt 0:00:00]} Qxe4 {[%emt 0:00:02]} 46. Bxc5 {[%emt 0:00:00]} Re3+ {[%emt 0:00:13]} 0-1

[Event "44th Chess Olympiad Open 2022"]
[Site "Chennai"]
[Date "2022.08.09"]
[Round "11.59"]
[White "Myat Thiri Aung Kyaw"]
[Black "Pinales Roussel, Gabriel"]
[Result "1-0"]
[ECO "A48"]
[WhiteElo "2120"]
[BlackElo "1973"]
[Annotator "RC"]
[PlyCount "153"]
[EventDate "2022.07.29"]
[EventType "team-tourn"]
[EventCountry "IND"]
[SourceTitle "playchess.com"]
[Source "ChessBase"]
[SourceQuality "1"]
[WhiteTeam "Myanmar"]
[BlackTeam "Puerto Rico"]
[WhiteTeamCountry "MYA"]
[BlackTeamCountry "PUR"]
[TimeControl "40/5400+30:1800+30"]

1. d4 {[%emt 0:01:17]} c5 {[%emt 0:00:26]} 2. e3 {[%emt 0:04:34]} g6 {[%emt 0:00:10]} 3. Nf3 {[%emt 0:00:06]} Bg7 {[%emt 0:00:19]} 4. Be2 {[%emt 0:00:16]} Nf6 {[%emt 0:00:15]} 5. c4 {[%emt 0:01:00]} O-O {[%emt 0:03:12]} 6. d5 {[%emt 0:02:50]} e6 {[%emt 0:02:35]} 7. Nc3 {[%emt 0:02:06]} exd5 {[%emt 0:03:10]} 8. cxd5 {[%emt 0:03:45]} Re8 {[%emt 0:00:54]} 9. O-O {[%emt 0:03:27]} d6 {[%emt 0:00:12]} 10. Rb1 {[%emt 0:03:00]} a6 {[%emt 0:04:29]} 11. a4 {[%emt 0:00:29]} Bf5 {[%emt 0:09:32]} 12. Bd3 {[%emt 0:01:22]} Bxd3 {[%emt 0:00:21]} 13. Qxd3 {[%emt 0:00:05]} Nbd7 {[%emt 0:00:06]} 14. h3 {[%emt 0:03:47]} Rc8 {[%emt 0:04:26]} 15. b3 {[%emt 0:09:17]} c4 {[%emt 0:01:49]} 16. bxc4 {[%emt 0:01:39]} Nc5 {[%emt 0:00:08]} 17. Qc2 {[%emt 0:02:04]} Re7 {[%emt 0:03:13]} 18. Ba3 {[%emt 0:06:18]} Rec7 {[%emt 0:00:34]} 19. Bb4 {[%emt 0:06:59]} Nfd7 {[%emt 0:09:52]} 20. Rfc1 {[%emt 0:10:13]} b6 {[%emt 0:03:11]} 21. Ne2 {[%emt 0:01:25]} a5 {[%emt 0:02:11]} 22. Ba3 {[%emt 0:01:47]} Na6 {[%emt 0:06:14]} 23. Qb3 {[%emt 0:04:38]} Nac5 {[%emt 0:02:12]} 24. Bxc5 {[%emt 0:12:00]} bxc5 {[%emt 0:00:08]} 25. Nc3 {[%emt 0:00:14]} Rb8 {[%emt 0:01:42]} 26. Nb5 {[%emt 0:02:24]} Nf6 {[%emt 0:00:21]} 27. Qc2 {[%emt 0:02:01]} Re7 {[%emt 0:00:07]} 28. Nd2 {[%emt 0:00:18]} Nh5 {[%emt 0:00:19]} 29. Ne4 {[%emt 0:03:54]} Rd7 {[%emt 0:07:34]} 30. g4 {[%emt 0:01:00]} Nf6 {[%emt 0:01:51]} 31. Kg2 {[%emt 0:01:29]} Ne8 {[%emt 0:00:12]} 32. Ng3 {[%emt 0:00:21]} Bf8 {[%emt 0:03:25]} 33. Qe4 {[%emt 0:01:04]} Ng7 {[%emt 0:00:17]} 34. f4 {[%emt 0:00:44]} Be7 {[%emt 0:05:39]} 35. Qf3 {[%emt 0:02:24]} Bh4 {[%emt 0:00:49]} 36. e4 {[%emt 0:00:25]} f5 {[%emt 0:00:30]} 37. gxf5 {[%emt 0:00:45]} gxf5 {[%emt 0:00:07]} 38. e5 {[%emt 0:00:05]} dxe5 {[%emt 0:00:14]} 39. fxe5 {[%emt 0:00:16]} Qg5 {[%emt 0:00:56]} 40. Kh2 {[%emt 0:05:12]} f4 {[%emt 0:03:15]} 41. Ne2 {[%emt 0:31:52]} Qxe5 {[%emt 0:30:24]} 42. Rg1 {[%emt 0:00:08]} Kh8 {[%emt 0:07:34]} 43. Rbf1 {[%emt 0:00:00]} Rf8 {[%emt 0:00:00]} 44. Kh1 {[%emt 0:00:00]} Rdf7 {[%emt 0:00:00]} 45. Rg4 {[%emt 0:00:00]} Nh5 {[%emt 0:00:00]} 46. Rxh4 {[%emt 0:00:00]} Ng3+ {[%emt 0:00:00]} 47. Nxg3 {[%emt 0:00:00]} fxg3 {[%emt 0:00:00]} 48. Qxf7 {[%emt 0:00:00]} Rxf7 {[%emt 0:00:00]} 49. Rxf7 {[%emt 0:00:00]} h5 {[%emt 0:00:00]} 50. Kg2 {[%emt 0:05:25]} Qe2+ {[%emt 0:00:00]} 51. Kxg3 {[%emt 0:00:07]} Qe1+ {[%emt 0:00:00]} 52. Rf2 {[%emt 0:00:33]} Qe3+ {[%emt 0:00:00]} 53. Rf3 {[%emt 0:00:56]} Qg5+ {[%emt 0:00:00]} 54. Rg4 {[%emt 0:00:08]} hxg4 {[%emt 0:00:00]} 55. hxg4 {[%emt 0:00:04]} Qe5+ {[%emt 0:00:00]} 56. Rf4 {[%emt 0:01:18]} Kg7 {[%emt 0:00:00]} 57. Kf3 {[%emt 0:00:06]} Qe1 {[%emt 0:00:00]} 58. Re4 {[%emt 0:00:33]} Qd1+ {[%emt 0:00:00]} 59. Kf4 {[%emt 0:00:05]} Qxa4 {[%emt 0:00:00]} 60. Nd6 {[%emt 0:00:40]} Qd1 {[%emt 0:00:00]} 61. Nf5+ {[%emt 0:00:23]} Kf8 {[%emt 0:01:28]} 62. g5 {[%emt 0:00:16]} Qd2+ {[%emt 0:01:15]} 63. Kg4 {[%emt 0:01:42]} Qg2+ {[%emt 0:00:10]} 64. Ng3 {[%emt 0:00:35]} a4 {[%emt 0:02:03]} 65. d6 {[%emt 0:00:19]} Qd2 {[%emt 0:00:05]} 66. Nf5 {[%emt 0:00:36]} Qd1+ {[%emt 0:09:26]} 67. Kf4 {[%emt 0:00:27]} Qd2+ {[%emt 0:01:19]} 68. Kg4 {[%emt 0:00:22]} Qd1+ {[%emt 0:01:29]} 69. Kg3 {[%emt 0:00:30]} a3 {[%emt 0:00:32]} 70. g6 {[%emt 0:00:20]} Qg1+ {[%emt 0:01:59]} 71. Kf4 {[%emt 0:00:05]} Qc1+ {[%emt 0:01:01]} 72. Kg4 {[%emt 0:01:25]} Qd1+ {[%emt 0:00:27]} 73. Kg5 {[%emt 0:00:28]} Qc1+ {[%emt 0:00:16]} 74. Kf6 {[%emt 0:00:31]} Qb2+ {[%emt 0:00:37]} 75. Rd4 {[%emt 0:00:35]} Qb8 {[%emt 0:04:13]} 76. g7+ {[%emt 0:00:13]} Kg8 {[%emt 0:00:05]} 77. Ne7+ {[%emt 0:00:08]} 1-0

[Event "44th Chess Olympiad Open 2022"]
[Site "Chennai"]
[Date "2022.08.09"]
[Round "11.59"]
[White "Fellman, Mike"]
[Black "Nay Lin Tun"]
[Result "1/2-1/2"]
[ECO "A58"]
[WhiteElo "2107"]
[BlackElo "2045"]
[Annotator "NA RC"]
[PlyCount "54"]
[EventDate "2022.07.29"]
[EventType "team-tourn"]
[EventCountry "IND"]
[SourceTitle "playchess.com"]
[Source "ChessBase"]
[SourceQuality "1"]
[WhiteTeam "Puerto Rico"]
[BlackTeam "Myanmar"]
[WhiteTeamCountry "PUR"]
[BlackTeamCountry "MYA"]
[TimeControl "40/5400+30:1800+30"]

1. d4 {[%emt 0:00:01]} Nf6 {[%emt 0:00:07]} 2. c4 {[%emt 0:00:02]} c5 {[%emt 0:00:49]} 3. d5 {[%emt 0:00:06]} b5 {[%emt 0:00:23]} 4. cxb5 {[%emt 0:00:06]} a6 {[%emt 0:00:05]} 5. bxa6 {[%emt 0:00:04]} g6 {[%emt 0:00:23]} 6. Nc3 {[%emt 0:00:06]} Bxa6 {[%emt 0:01:54]} 7. g3 {[%emt 0:00:07]} d6 {[%emt 0:00:13]} 8. Bg2 {[%emt 0:00:11]} Bg7 {[%emt 0:00:10]} 9. Nf3 {[%emt 0:00:43]} O-O {[%emt 0:00:26]} 10. O-O {[%emt 0:00:55]} Nbd7 {[%emt 0:00:28]} 11. Rb1 {[%emt 0:00:07]} Qa5 {[%emt 0:02:20]} 12. Bd2 {[%emt 0:00:06]} Qc7 {[%emt 0:00:26]} 13. b3 {[%emt 0:03:26]} Nb6 {[%emt 0:09:22]} 14. Nh4 {[%emt 0:02:11]} Bb7 {[%emt 0:09:10]} 15. e4 {[%emt 0:07:38]} Ba6 {[%emt 0:07:52]} 16. Re1 {[%emt 0:00:08]} Nfd7 {[%emt 0:01:51]} 17. Nf3 {[%emt 0:03:49]} Bd3 {[%emt 0:13:14]} 18. Rc1 {[%emt 0:01:21]} c4 {[%emt 0:00:42]} 19. Be3 {[%emt 0:08:55]} Nc5 {[%emt 0:03:39]} 20. Nd2 {[%emt 0:10:29]} Bxc3 {[%emt 0:16:05]} 21. Rxc3 {[%emt 0:00:08]} Rxa2 {[%emt 0:00:06]} 22. Nxc4 {[%emt 0:07:13]} Nxc4 {[%emt 0:07:41]} 23. bxc4 {[%emt 0:01:23]} Qa5 {[%emt 0:10:53]} 24. Bd2 {[%emt 0:17:28]} Qa7 {[%emt 0:04:46]} 25. Be3 {[%emt 0:01:40]} Qa5 {[%emt 0:00:15]} 26. Bd2 {[%emt 0:01:13]} Qa7 {[%emt 0:00:09]} 27. Be3 {[%emt 0:00:06]} Qa5 {[%emt 0:00:17]} 1/2-1/2

[Event "44th Chess Olympiad Open 2022"]
[Site "Chennai"]
[Date "2022.08.09"]
[Round "11.59"]
[White "Gerena Rivas, Eliam"]
[Black "Maung, Maung Kyaw Zaw Hein"]
[Result "1-0"]
[ECO "B18"]
[WhiteElo "2102"]
[BlackElo "2121"]
[Annotator "RC"]
[PlyCount "129"]
[EventDate "2022.07.29"]
[EventType "team-tourn"]
[EventCountry "IND"]
[SourceTitle "playchess.com"]
[Source "ChessBase"]
[SourceQuality "1"]
[WhiteTeam "Puerto Rico"]
[BlackTeam "Myanmar"]
[WhiteTeamCountry "PUR"]
[BlackTeamCountry "MYA"]
[TimeControl "40/5400+30:1800+30"]

1. e4 {[%emt 0:00:04]} c6 {[%emt 0:00:34]} 2. d4 {[%emt 0:00:37]} d5 {[%emt 0:00:04]} 3. Nc3 {[%emt 0:00:13]} dxe4 {[%emt 0:00:05]} 4. Nxe4 {[%emt 0:00:10]} Bf5 {[%emt 0:00:05]} 5. Ng3 {[%emt 0:00:21]} Bg6 {[%emt 0:00:04]} 6. h4 {[%emt 0:00:38]} h6 {[%emt 0:00:11]} 7. N1e2 {[%emt 0:00:43]} Nf6 {[%emt 0:02:24]} 8. Nf4 {[%emt 0:00:43]} Bh7 {[%emt 0:00:30]} 9. Bc4 {[%emt 0:03:22]} e6 {[%emt 0:07:09]} 10. Qe2 {[%emt 0:08:39]} Nd5 {[%emt 0:01:49]} 11. c3 {[%emt 0:01:10]} Nxf4 {[%emt 0:03:28]} 12. Bxf4 {[%emt 0:00:09]} Nd7 {[%emt 0:08:57]} 13. Nh5 {[%emt 0:07:41]} Bg6 {[%emt 0:06:05]} 14. O-O-O {[%emt 0:01:57]} Bxh5 {[%emt 0:01:55]} 15. Qxh5 {[%emt 0:00:09]} Nf6 {[%emt 0:00:53]} 16. Qe2 {[%emt 0:00:40]} Bd6 {[%emt 0:02:19]} 17. Be5 {[%emt 0:01:58]} Qc7 {[%emt 0:07:11]} 18. Kb1 {[%emt 0:05:44]} O-O-O {[%emt 0:01:38]} 19. Rhe1 {[%emt 0:06:08]} Kb8 {[%emt 0:07:51]} 20. Bb3 {[%emt 0:02:24]} Rd7 {[%emt 0:05:17]} 21. Rd3 {[%emt 0:05:10]} Rhd8 {[%emt 0:02:21]} 22. Red1 {[%emt 0:07:41]} c5 {[%emt 0:05:31]} 23. Ba4 {[%emt 0:02:56]} c4 {[%emt 0:02:17]} 24. Rf3 {[%emt 0:01:50]} Bxe5 {[%emt 0:06:05]} 25. Bxd7 {[%emt 0:00:27]} Rxd7 {[%emt 0:00:18]} 26. dxe5 {[%emt 0:00:46]} Nd5 {[%emt 0:00:09]} 27. Rd4 {[%emt 0:01:09]} b5 {[%emt 0:00:36]} 28. Rh3 {[%emt 0:04:02]} Qc5 {[%emt 0:06:02]} 29. Rh1 {[%emt 0:02:06]} Rc7 {[%emt 0:01:25]} 30. Rhd1 {[%emt 0:01:22]} a5 {[%emt 0:01:23]} 31. Qe4 {[%emt 0:01:46]} b4 {[%emt 0:06:06]} 32. Rxd5 {[%emt 0:06:45]} exd5 {[%emt 0:00:05]} 33. Qxd5 {[%emt 0:03:14]} bxc3 {[%emt 0:00:49]} 34. bxc3 {[%emt 0:02:09]} Qxf2 {[%emt 0:04:45]} 35. Ka1 {[%emt 0:01:43]} Qc5 {[%emt 0:01:02]} 36. Rb1+ {[%emt 0:06:22]} Ka7 {[%emt 0:00:11]} 37. Rb7+ {[%emt 0:00:50]} Ka6 {[%emt 0:02:34]} 38. Qxc5 {[%emt 0:00:11]} Rxc5 {[%emt 0:00:04]} 39. Rxf7 {[%emt 0:00:08]} Rxe5 {[%emt 0:00:07]} 40. Rxg7 {[%emt 0:00:10]} Re2 {[%emt 0:01:56]} 41. a4 {[%emt 0:30:34]} h5 {[%emt 0:37:04]} 42. Rg5 {[%emt 0:02:34]} Kb6 {[%emt 0:01:33]} 43. Kb1 {[%emt 0:01:05]} Rd2 {[%emt 0:00:00]} 44. Kc1 {[%emt 0:00:00]} Re2 {[%emt 0:00:00]} 45. Rb5+ {[%emt 0:00:00]} Ka6 {[%emt 0:00:00]} 46. Rxh5 {[%emt 0:00:00]} Rxg2 {[%emt 0:00:00]} 47. Rg5 {[%emt 0:00:00]} Rh2 {[%emt 0:00:00]} 48. Rg4 {[%emt 0:00:00]} Kb6 {[%emt 0:00:00]} 49. Rxc4 {[%emt 0:00:00]} Kb7 {[%emt 0:00:00]} 50. Kd1 {[%emt 0:00:00]} Kb6 {[%emt 0:00:00]} 51. Ke1 {[%emt 0:00:00]} Kb7 {[%emt 0:00:00]} 52. Kf1 {[%emt 0:00:00]} Kb6 {[%emt 0:00:00]} 53. Kg1 {[%emt 0:00:00]} Rc2 {[%emt 0:00:00]} 54. h5 {[%emt 0:00:00]} Rc1+ {[%emt 0:00:00]} 55. Kg2 {[%emt 0:00:00]} Rc2+ {[%emt 0:00:00]} 56. Kg3 {[%emt 0:00:00]} Rc1 {[%emt 0:00:00]} 57. Kg4 {[%emt 0:00:00]} Rg1+ {[%emt 0:00:00]} 58. Kf5 {[%emt 0:00:00]} Rh1 {[%emt 0:00:00]} 59. Kg6 {[%emt 0:00:00]} Rg1+ {[%emt 0:00:00]} 60. Kh7 {[%emt 0:00:00]} Kb7 {[%emt 0:00:00]} 61. h6 {[%emt 0:00:00]} Rg3 {[%emt 0:00:00]} 62. Kh8 {[%emt 0:00:00]} Kb6 {[%emt 0:00:00]} 63. h7 {[%emt 0:00:00]} Kb7 {[%emt 0:00:00]} 64. Re4 {[%emt 0:00:00]} Rxc3 {[%emt 0:00:00]} 65. Re7+ {[%emt 0:00:00]} 1-0

[Event "44th Chess Olympiad Open 2022"]
[Site "Chennai"]
[Date "2022.08.09"]
[Round "11.59"]
[White "Sai Han Thiha"]
[Black "Rodriguez Santiago, Jaime"]
[Result "1-0"]
[ECO "B06"]
[WhiteElo "1974"]
[BlackElo "2067"]
[Annotator "NA RC"]
[PlyCount "73"]
[EventDate "2022.07.29"]
[EventType "team-tourn"]
[EventCountry "IND"]
[SourceTitle "playchess.com"]
[Source "ChessBase"]
[SourceQuality "1"]
[WhiteTeam "Myanmar"]
[BlackTeam "Puerto Rico"]
[WhiteTeamCountry "MYA"]
[BlackTeamCountry "PUR"]
[TimeControl "40/5400+30:1800+30"]

1. d4 {[%emt 0:00:02]} g6 {[%emt 0:00:06]} 2. e4 {[%emt 0:00:44]} d6 {[%emt 0:00:07]} 3. Nc3 {[%emt 0:00:25]} c6 {[%emt 0:00:07]} 4. Nf3 {[%emt 0:03:03]} Bg7 {[%emt 0:00:22]} 5. Bc4 {[%emt 0:01:03]} b5 {[%emt 0:02:46]} 6. Bb3 {[%emt 0:00:24]} b4 {[%emt 0:00:19]} 7. Ne2 {[%emt 0:01:23]} Nf6 {[%emt 0:00:32]} 8. Ng3 {[%emt 0:07:16]} O-O {[%emt 0:02:45]} 9. O-O {[%emt 0:00:48]} Bg4 {[%emt 0:01:55]} 10. a3 {[%emt 0:01:21]} bxa3 {[%emt 0:01:26]} 11. Rxa3 {[%emt 0:00:13]} Nbd7 {[%emt 0:00:33]} 12. Re1 {[%emt 0:15:57]} Qc7 {[%emt 0:02:07]} 13. h3 {[%emt 0:00:54]} Bxf3 {[%emt 0:01:14]} 14. Qxf3 {[%emt 0:00:07]} c5 {[%emt 0:01:08]} 15. c3 {[%emt 0:11:38]} a5 {[%emt 0:03:49]} 16. Bf4 {[%emt 0:05:17]} cxd4 {[%emt 0:03:17]} 17. cxd4 {[%emt 0:00:07]} e5 {[%emt 0:00:30]} 18. Be3 {[%emt 0:04:27]} Rfb8 {[%emt 0:02:32]} 19. Qe2 {[%emt 0:08:28]} Qb7 {[%emt 0:06:01]} 20. d5 {[%emt 0:07:08]} h5 {[%emt 0:03:13]} 21. Ba4 {[%emt 0:11:59]} h4 {[%emt 0:02:14]} 22. Bc6 {[%emt 0:00:35]} Qb4 {[%emt 0:02:39]} 23. Nf1 {[%emt 0:03:52]} Qxe4 {[%emt 0:01:26]} 24. Ra4 {[%emt 0:01:21]} Qf5 {[%emt 0:01:10]} 25. Rea1 {[%emt 0:00:40]} e4 {[%emt 0:01:23]} 26. Bxa8 {[%emt 0:00:25]} Rxa8 {[%emt 0:00:05]} 27. Rxa5 {[%emt 0:00:05]} Rb8 {[%emt 0:00:40]} 28. Ba7 {[%emt 0:04:16]} Rb7 {[%emt 0:01:14]} 29. Ne3 {[%emt 0:00:08]} Qg5 {[%emt 0:00:49]} 30. Bd4 {[%emt 0:00:16]} Ne5 {[%emt 0:01:46]} 31. Bxe5 {[%emt 0:01:11]} Qxe5 {[%emt 0:01:07]} 32. Nc4 {[%emt 0:00:07]} Qe7 {[%emt 0:00:23]} 33. Ra8+ {[%emt 0:00:44]} Kh7 {[%emt 0:00:17]} 34. Ne3 {[%emt 0:03:47]} Nh5 {[%emt 0:00:19]} 35. Qg4 {[%emt 0:00:58]} Rxb2 {[%emt 0:09:44]} 36. Qc8 {[%emt 0:00:49]} Bd4 {[%emt 0:00:37]} 37. Ng4 {[%emt 0:01:58]} 1-0